bitfinex/quotes_BTCUSD_20240729
["timestamp","ask_amount","ask_price","bid_price","bid_amount"]
[1722268805939,0.02295166,68228.0,68219.0,0.023]
[1722268806074,0.07581741,68227.0,68218.0,0.003924]
[1722268806282,0.1,68230.0,68218.0,0.003924]
[1722268806283,0.082,68225.0,68218.0,0.003924]
[1722268806491,0.287086,68219.0,68218.0,0.003924]
[1722268806691,1.27865296,68219.0,68218.0,0.003924]
[1722268807098,1.57182596,68219.0,68218.0,0.003924]
[1722268807301,1.62182596,68219.0,68218.0,0.000924]
[1722268807505,2.10317896,68219.0,68218.0,0.000924]
[1722268807711,1.448496,68213.0,68212.0,0.000924]
[1722268807917,1.80550211,68213.0,68212.0,0.000924]
[1722268808562,1.71833766,68213.0,68212.0,0.000924]
[1722268809007,1.72433766,68213.0,68212.0,0.000924]
[1722268809174,1.86161498,68213.0,68212.0,0.000924]
[1722268809375,1.76833766,68213.0,68212.0,0.000924]
[1722268809886,1.78033766,68213.0,68212.0,0.000924]
[1722268810091,1.80334009,68213.0,68212.0,0.000924]
[1722268810311,1.49853766,68213.0,68212.0,0.000924]
[1722268811120,2.01974605,68213.0,68212.0,0.000924]
[1722268811295,1.78021055,68213.0,68212.0,0.000924]
[1722268811506,1.86725557,68213.0,68212.0,0.000924]
[1722268811683,1.32492058,68213.0,68212.0,0.000924]
[1722268811866,0.90001255,68213.0,68212.0,0.000924]
[1722268812068,0.91201255,68213.0,68212.0,0.000924]
[1722268812312,0.47921455,68213.0,68212.0,0.000924]
[1722268812525,0.2516873,68213.0,68212.0,0.000924]
[1722268812693,0.04195166,68213.0,68212.0,0.000924]
[1722268812892,0.012,68213.0,68212.0,0.000924]
[1722268813097,0.012,68213.0,68212.0,0.062124]
[1722268813323,0.04400039,68213.0,68212.0,0.000924]
[1722268813500,0.61489778,68213.0,68212.0,0.000924]
[1722268813698,0.97509767,68213.0,68212.0,0.000924]
[1722268813922,1.20818829,68213.0,68212.0,0.000924]
[1722268814187,1.47027935,68213.0,68212.0,0.000924]
[1722268814389,1.51372964,68213.0,68212.0,0.000924]
[1722268814670,1.71702255,68213.0,68212.0,0.000924]
[1722268814889,1.6331322,68213.0,68212.0,0.000924]
[1722268815009,1.71480396,68213.0,68212.0,0.000924]
[1722268815214,1.71480396,68213.0,68191.0,0.0015542]
[1722268815215,0.15,68200.0,68191.0,0.0015542]
[1722268815442,0.1546,68212.0,68188.0,0.009075]
[1722268815443,1.0313,68194.0,68188.0,0.009075]
[1722268815683,0.28885062,68194.0,68188.0,0.009075]
[1722268815886,0.8332,68194.0,68188.0,0.009075]
[1722268816090,1.12648,68194.0,68188.0,0.009075]
[1722268816332,1.31108751,68194.0,68188.0,0.009075]
[1722268816529,1.25705486,68194.0,68188.0,0.009075]
[1722268816931,0.88664076,68194.0,68188.0,0.009075]
[1722268817107,0.84280622,68194.0,68188.0,0.009075]
[1722268817308,1.42936622,68194.0,68188.0,0.009075]
[1722268817516,1.23408593,68194.0,68188.0,0.009075]
[1722268817719,1.18541753,68194.0,68188.0,0.009075]
[1722268818266,1.19042818,68194.0,68188.0,0.009075]
[1722268818470,1.52303949,68194.0,68188.0,0.009075]
[1722268818823,1.61173487,68194.0,68188.0,0.009075]
[1722268819025,1.6168389,68194.0,68188.0,0.009075]
[1722268819229,1.37732398,68194.0,68188.0,0.009075]
[1722268819430,1.27918561,68194.0,68188.0,0.009075]
[1722268820103,1.35568561,68194.0,68188.0,0.009075]
[1722268820233,1.29118561,68194.0,68188.0,0.009075]
[1722268820437,1.27918561,68194.0,68188.0,0.009075]
[1722268821320,1.30219404,68194.0,68188.0,0.009075]
[1722268821531,1.31019404,68194.0,68188.0,0.009075]
[1722268821959,1.60347404,68194.0,68188.0,0.009075]
[1722268822159,1.33134242,68194.0,68188.0,0.009075]
[1722268822389,1.37050937,68194.0,68188.0,0.009075]
[1722268822831,1.31674634,68194.0,68188.0,0.009075]
[1722268823037,1.27757939,68194.0,68188.0,0.009075]
[1722268823286,1.31674634,68194.0,68188.0,0.009075]
[1722268823489,1.27757939,68194.0,68188.0,0.009075]
[1722268824250,1.28657939,68194.0,68188.0,0.009075]
[1722268824642,0.69201939,68194.0,68188.0,0.009075]
[1722268824849,0.03916695,68205.0,68188.0,0.009075]
[1722268824850,0.03942683,68201.0,68193.0,0.155575]
[1722268825068,0.472,68206.0,68198.0,0.21817455]
[1722268825247,0.472,68206.0,68199.0,0.00153522]
[1722268825480,0.0230058,68203.0,68199.0,0.00153522]
[1722268825690,0.0230058,68203.0,68193.0,0.155575]
[1722268825885,0.0230058,68203.0,68194.0,0.0015542]
[1722268826064,0.146623,68202.0,68194.0,0.0015542]
[1722268826263,0.146623,68202.0,68193.0,0.155575]
[1722268826993,0.146623,68202.0,68194.0,0.00153978]
[1722268827151,0.146623,68202.0,68193.0,0.155575]
[1722268827347,0.765233,68206.0,68193.0,0.155575]
[1722268827348,0.013,68194.0,68193.0,0.155575]
[1722268827917,0.013,68194.0,68188.0,0.009075]
[1722268827918,0.018,68194.0,68191.0,0.07154355]
[1722268828114,0.018,68194.0,68193.0,0.439927]
[1722268828327,0.018,68194.0,68193.0,0.756212]
[1722268828529,0.018,68194.0,68193.0,0.462927]
[1722268829574,0.018,68194.0,68193.0,0.023]
[1722268829779,0.04100453,68194.0,68192.0,0.0245542]
[1722268830052,0.02300453,68194.0,68193.0,0.146642]
[1722268830310,0.02300453,68194.0,68193.0,0.023]
[1722268830483,0.02300453,68194.0,68193.0,0.169642]
[1722268830654,0.02300453,68194.0,68193.0,0.756212]
[1722268830857,0.02300453,68194.0,68193.0,0.603327]
[1722268831491,0.02300453,68194.0,68193.0,0.896612]
[1722268831722,0.02300453,68194.0,68193.0,1.189897]
[1722268831923,0.02300453,68194.0,68193.0,0.603327]
[1722268832299,0.02300453,68194.0,68193.0,0.896612]
[1722268832498,0.02300453,68194.0,68193.0,0.310042]
[1722268832695,0.02400453,68194.0,68193.0,0.311042]
[1722268832897,0.02400453,68194.0,68193.0,0.1644]
[1722268833160,0.02400453,68194.0,68193.0,0.3125962]
[1722268833346,0.02400453,68194.0,68193.0,1.19226559]
[1722268833517,0.02400453,68194.0,68193.0,1.38555059]
[1722268833712,0.02400453,68194.0,68193.0,1.09071139]
[1722268834155,0.02400453,68194.0,68193.0,1.19071139]
[1722268834355,0.02400453,68194.0,68193.0,1.09071139]
[1722268834727,0.02400453,68194.0,68193.0,0.79742639]
[1722268834934,0.02300453,68194.0,68193.0,0.30649939]
[1722268835129,0.02300453,68194.0,68193.0,0.0802]
[1722268835380,0.02400453,68194.0,68193.0,0.001]
[1722268835523,0.02400453,68194.0,68187.0,0.0651542]
[1722268835524,0.02300453,68194.0,68187.0,0.0651542]
[1722268835727,0.16964453,68194.0,68189.0,0.0015542]
[1722268835931,0.17064453,68194.0,68193.0,0.001]
[1722268836217,0.02400453,68194.0,68193.0,0.001]
[1722268836415,0.02382811,68194.0,68193.0,0.001]
[1722268836824,0.14764,68194.0,68193.0,0.001]
[1722268837066,0.001,68194.0,68193.0,0.001]
[1722268837239,0.14764,68194.0,68193.0,0.001]
[1722268837475,0.00950109,68196.0,68188.0,0.00434355]
[1722268837689,0.146649,68190.0,68189.0,0.0015542]
[1722268837913,0.146647,68191.0,68189.0,0.0015542]
[1722268838126,0.294282,68194.0,68188.0,0.00434355]
[1722268838333,0.294282,68194.0,68189.0,0.0015542]
[1722268838334,0.146644,68192.0,68189.0,0.0015542]
[1722268838485,0.01228533,68202.0,68189.0,0.0015542]
[1722268838717,0.146643,68193.0,68190.0,0.07154355]
[1722268839044,0.146645,68192.0,68190.0,0.07154355]
[1722268839165,0.001,68196.0,68188.0,0.00534355]
[1722268839369,0.439953,68189.0,68188.0,0.00534355]
[1722268839780,0.001,68196.0,68188.0,0.00534355]
[1722268839983,0.439953,68189.0,68188.0,0.00534355]
[1722268840186,0.146651,68189.0,68188.0,0.00534355]
[1722268840639,0.439953,68189.0,68188.0,0.00534355]
[1722268840907,0.733255,68189.0,68188.0,0.00534355]
[1722268841322,1.092757,68189.0,68188.0,0.00434355]
[1722268841705,1.093757,68189.0,68188.0,0.00534355]
[1722268841908,1.093757,68189.0,68188.0,0.00434355]
[1722268841909,1.31346033,68189.0,68188.0,0.00434355]
[1722268842255,1.31446033,68189.0,68188.0,0.00534355]
[1722268843915,1.31446033,68189.0,68165.0,0.07154355]
[1722268843916,0.05,68173.0,68165.0,0.07154355]
[1722268844069,0.05,68172.0,68169.0,0.42926131]
[1722268844281,0.05,68170.0,68166.0,0.16609939]
[1722268844512,0.1,68175.0,68166.0,0.16609939]
[1722268844736,0.05,68171.0,68166.0,0.16609939]
[1722268844952,0.1,68172.0,68166.0,0.023]
[1722268845395,0.05,68176.0,68167.0,0.14603302]
[1722268845614,0.765324,68184.0,68172.0,0.07154355]
[1722268845615,0.15,68178.0,68172.0,0.07154355]
[1722268846040,0.15,68178.0,68168.0,0.023]
[1722268846041,0.05,68174.0,68173.0,0.023]
[1722268846253,0.05,68174.0,68169.0,0.023]
[1722268846460,0.05,68174.0,68168.0,0.023]
[1722268846668,0.05,68173.0,68168.0,0.16609939]
[1722268847018,0.05,68169.0,68168.0,0.023]
[1722268847229,0.05,68168.0,68167.0,0.023]
[1722268847428,0.001,68170.0,68166.0,0.005]
[1722268847429,0.05,68167.0,68166.0,0.005]
[1722268847630,0.101,68170.0,68166.0,0.005]
[1722268847631,0.05,68168.0,68166.0,0.005]
[1722268848432,0.001,68170.0,68166.0,0.005]
[1722268848857,0.001,68170.0,68167.0,0.023]
[1722268849791,0.001,68170.0,68167.0,0.16903305]
[1722268849999,0.001,68170.0,68167.0,0.16609939]
[1722268850194,0.001,68170.0,68169.0,0.0132]
[1722268850407,0.001,68170.0,68169.0,0.0362]
[1722268850822,0.001,68170.0,68169.0,0.023]
[1722268852980,0.05,68174.0,68169.0,0.023]
[1722268853180,0.05,68171.0,68170.0,0.023]
[1722268853631,0.001,68173.0,68169.0,0.023]
[1722268853632,0.05,68170.0,68169.0,0.023]
[1722268854307,0.151,68170.0,68169.0,0.004]
[1722268855217,1.45764339,68170.0,68169.0,0.004]
[1722268855453,1.67436716,68170.0,68169.0,0.004]
[1722268855710,2.19955116,68170.0,68169.0,0.004]
[1722268855968,1.96775116,68170.0,68169.0,0.004]
[1722268856197,2.00813845,68170.0,68169.0,0.004]
[1722268856894,2.01217895,68170.0,68169.0,0.005]
[1722268857123,2.01117895,68170.0,68169.0,0.004]
[1722268857349,2.24297895,68170.0,68169.0,0.004]
[1722268857573,2.22000443,68170.0,68169.0,0.004]
[1722268857797,1.70882043,68170.0,68169.0,0.004]
[1722268858014,2.00220443,68170.0,68169.0,0.004]
[1722268858224,1.98820443,68170.0,68169.0,0.004]
[1722268858642,0.24673,68152.0,68151.0,0.009086]
[1722268859178,0.1,68152.0,68151.0,0.009086]
[1722268859378,0.15,68152.0,68151.0,0.009086]
[1722268859780,0.05,68152.0,68151.0,0.009086]
[1722268860644,0.001,68152.0,68151.0,0.036086]
[1722268861309,0.051,68152.0,68151.0,0.036086]
[1722268861438,0.051,68152.0,68151.0,0.013086]
[1722268861439,1.43432409,68152.0,68151.0,0.013086]
[1722268861640,2.03518032,68152.0,68151.0,0.013086]
[1722268861826,1.94360921,68152.0,68151.0,0.013086]
[1722268862022,1.65435175,68152.0,68151.0,0.013086]
[1722268862477,1.71081131,68152.0,68151.0,0.009086]
[1722268862696,1.71147701,68152.0,68151.0,0.009086]
[1722268862836,1.65335175,68152.0,68151.0,0.009086]
[1722268863041,2.23773709,68152.0,68151.0,0.013086]
[1722268863238,2.23773709,68152.0,68143.0,0.009086]
[1722268863239,1.318936,68144.0,68143.0,0.009086]
[1722268863439,1.78933185,68144.0,68143.0,0.009086]
[1722268863646,2.14150838,68144.0,68143.0,0.009086]
[1722268863843,1.94801238,68144.0,68143.0,0.009086]
[1722268864051,1.65753185,68144.0,68143.0,0.009086]
[1722268865104,1.65753185,68144.0,68120.0,0.0135284]
[1722268865105,0.734765,68125.0,68120.0,0.0135284]
[1722268865330,0.05,68125.0,68120.0,0.0135284]
[1722268865474,0.15,68125.0,68120.0,0.0135284]
[1722268865674,0.05,68125.0,68120.0,0.0135284]
[1722268866160,0.05,68132.0,68124.0,0.26978539]
[1722268866719,0.05,68135.0,68125.0,0.2405783]
[1722268866920,0.05,68135.0,68125.0,0.23764294]
[1722268867372,0.05,68135.0,68126.0,0.146786]
[1722268867576,0.05,68129.0,68127.0,0.023]
[1722268867809,0.0755,68128.0,68127.0,0.023]
[1722268867993,0.0755,68128.0,68124.0,0.009086]
[1722268867994,0.15,68125.0,68124.0,0.009086]
[1722268868212,0.296788,68125.0,68124.0,0.009086]
[1722268868934,1.08924139,68125.0,68124.0,0.009086]
[1722268869148,1.48281839,68125.0,68124.0,0.009086]
[1722268870972,1.52412714,68125.0,68124.0,0.009086]
[1722268871603,1.60682714,68125.0,68124.0,0.009086]
[1722268872004,2.00219478,68125.0,68124.0,0.009086]
[1722268872232,1.90040414,68125.0,68124.0,0.009086]
[1722268872466,1.90040414,68125.0,68097.0,0.009086]
[1722268872468,0.296847,68098.0,68097.0,0.009086]
[1722268872693,0.1163,68098.0,68097.0,0.009086]
[1722268872892,0.4664,68110.0,68097.0,0.009086]
[1722268872893,0.05,68100.0,68097.0,0.009086]
[1722268873046,0.05,68100.0,68099.0,0.07154355]
[1722268873877,0.4664,68110.0,68100.0,0.0353]
[1722268873878,0.05,68108.0,68100.0,0.0353]
[1722268874089,0.0759,68120.0,68100.0,0.0353]
[1722268874091,0.05,68115.0,68107.0,0.07154355]
[1722268874301,0.05,68115.0,68101.0,0.16609939]
[1722268874303,0.5329,68124.0,68101.0,0.023]
[1722268874304,0.05,68106.0,68101.0,0.023]
[1722268874506,0.1,68111.0,68094.0,0.0353]
[1722268874507,0.05,68099.0,68094.0,0.0353]
[1722268874709,0.05,68099.0,68098.0,0.023]
[1722268875176,0.355651,68108.0,68097.0,0.009086]
[1722268875177,0.05,68098.0,68097.0,0.009086]
[1722268875379,0.1,68098.0,68097.0,0.009086]
[1722268875604,0.05,68098.0,68097.0,0.009086]
[1722268876266,0.1,68098.0,68097.0,0.009086]
[1722268876432,0.542541,68098.0,68097.0,0.009086]
[1722268876681,0.654441,68098.0,68097.0,0.009086]
[1722268876908,0.604441,68098.0,68097.0,0.009086]
[1722268877128,0.308747,68098.0,68097.0,0.009086]
[1722268877327,1.20675572,68098.0,68097.0,0.009086]
[1722268877545,1.50044972,68098.0,68097.0,0.009086]
[1722268877771,1.54637627,68098.0,68097.0,0.009086]
[1722268877931,1.49637627,68098.0,68097.0,0.009086]
[1722268878134,1.54637627,68098.0,68097.0,0.009086]
[1722268878534,1.25268227,68098.0,68097.0,0.009086]
[1722268878742,1.49637627,68098.0,68097.0,0.009086]
[1722268879003,0.27534788,68098.0,68097.0,0.009086]
[1722268879172,0.05,68098.0,68097.0,0.009086]
[1722268879397,0.05939756,68098.0,68097.0,0.009086]
[1722268880276,0.59993856,68098.0,68097.0,0.009086]
[1722268880725,0.60193856,68098.0,68097.0,0.009086]
[1722268881197,1.18832656,68098.0,68097.0,0.009086]
[1722268881458,1.47072595,68098.0,68097.0,0.009086]
[1722268881704,1.57372595,68098.0,68097.0,0.009086]
[1722268882059,1.86741995,68098.0,68097.0,0.009086]
[1722268882605,1.86741995,68098.0,68070.0,0.0787]
[1722268882606,1.023935,68061.0,68060.0,0.001]
[1722268882759,0.630081,68061.0,68060.0,0.001]
[1722268882938,0.05,68061.0,68060.0,0.001]
[1722268883312,0.1,68073.0,68060.0,0.001]
[1722268883313,0.05,68073.0,68060.0,0.3456]
[1722268883486,0.05,68073.0,68071.0,0.07154355]
[1722268884155,0.05,68071.0,68064.0,0.07154355]
[1722268884356,0.05,68080.0,68065.0,0.26903737]
[1722268884654,0.05,68080.0,68074.0,0.07154355]
[1722268884879,0.05,68081.0,68075.0,0.023]
[1722268885080,0.05,68080.0,68075.0,0.023]
[1722268885619,0.05,68082.0,68076.0,0.08483759]
[1722268885819,0.05,68082.0,68077.0,0.023]
[1722268886820,0.293737,68088.0,68068.0,0.373]
[1722268886821,0.05,68077.0,68075.0,0.023]
[1722268887024,0.05,68077.0,68069.0,0.16609939]
[1722268887210,0.0015542,68076.0,68069.0,0.16609939]
[1722268887412,0.05,68073.0,68069.0,0.023]
[1722268887553,0.05,68073.0,68071.0,0.07154355]
[1722268887756,0.05,68080.0,68072.0,0.023]
[1722268888346,0.05,68083.0,68078.0,0.07154355]
[1722268888585,0.05,68083.0,68079.0,0.0259323]
[1722268889017,0.05,68091.0,68080.0,0.19659939]
[1722268889263,0.0822,68098.0,68087.0,0.14687]
[1722268889264,0.05,68097.0,68087.0,0.14687]
[1722268889487,0.001,68098.0,68092.0,0.36264355]
[1722268889720,0.001,68098.0,68097.0,0.440547]
[1722268889917,0.1,68114.0,68101.0,0.002]
[1722268889918,0.05,68114.0,68101.0,0.002]
[1722268890292,0.3577,68120.0,68102.0,0.07154355]
[1722268890293,0.47926131,68109.0,68102.0,0.07154355]
[1722268890465,0.1015542,68113.0,68103.0,0.023]
[1722268890466,0.05,68108.0,68103.0,0.023]
[1722268890692,0.05,68108.0,68100.0,0.023]
[1722268890693,0.05,68106.0,68100.0,0.023]
[1722268890922,0.05,68106.0,68098.0,0.023]
[1722268891139,0.0015542,68113.0,68098.0,0.023]
[1722268891140,0.05,68099.0,68098.0,0.023]
[1722268891358,0.07154355,68115.0,68089.0,0.1]
[1722268891359,0.05,68098.0,68089.0,0.1]
[1722268891770,0.05,68096.0,68090.0,0.16609939]
[1722268891978,0.114,68098.0,68090.0,0.023]
[1722268891979,0.05,68094.0,68090.0,0.023]
[1722268892177,0.183,68102.0,68092.0,0.07154355]
[1722268892178,0.05,68102.0,68092.0,0.07154355]
[1722268892384,0.0606,68109.0,68093.0,0.023]
[1722268892385,0.05,68098.0,68093.0,0.023]
[1722268892609,0.15,68098.0,68093.0,0.023]
[1722268892818,0.15,68098.0,68082.0,0.29376]
[1722268892819,0.05,68090.0,68077.0,0.075]
[1722268893033,0.05,68090.0,68081.0,0.14309939]
[1722268893252,0.293677,68102.0,68087.0,0.002]
[1722268893253,0.05,68100.0,68087.0,0.002]
[1722268893470,0.1,68102.0,68088.0,0.43713619]
[1722268893471,0.001,68102.0,68088.0,0.43713619]
[1722268893672,0.051,68102.0,68088.0,0.43713619]
[1722268894290,0.051,68102.0,68090.0,0.293728]
[1722268894505,0.051,68102.0,68091.0,0.16609939]
[1722268894506,0.001,68096.0,68091.0,0.16609939]
[1722268894947,0.051,68102.0,68092.0,0.14686]
[1722268895290,0.053,68102.0,68093.0,0.16609939]
[1722268895720,0.05,68098.0,68093.0,0.023]
[1722268895924,0.05,68098.0,68088.0,0.023]
[1722268895925,0.05,68097.0,68088.0,0.023]
[1722268896044,0.05,68097.0,68089.0,0.14309939]
[1722268896045,0.1,68097.0,68089.0,0.14309939]
[1722268896244,0.05,68097.0,68089.0,0.14309939]
[1722268896446,0.001,68090.0,68088.0,0.023]
[1722268899151,0.051,68090.0,68088.0,0.023]
[1722268899372,0.001,68090.0,68088.0,0.023]
[1722268899580,0.001,68090.0,68082.0,0.023]
[1722268899785,0.001,68090.0,68083.0,0.14309939]
[1722268899984,0.05,68091.0,68085.0,0.07154355]
[1722268900187,0.05,68091.0,68086.0,0.023]
[1722268900785,0.1,68096.0,68086.0,0.023]
[1722268900786,0.05,68100.0,68087.0,0.14603653]
[1722268900985,0.05,68100.0,68089.0,0.146866]
[1722268901225,0.05,68100.0,68090.0,0.16609939]
[1722268901431,0.1,68102.0,68092.0,0.07154355]
[1722268901432,0.05,68102.0,68092.0,0.07154355]
[1722268901631,0.1,68104.0,68092.0,0.07154355]
[1722268901632,0.05,68100.0,68093.0,0.16609939]
[1722268902774,0.15,68102.0,68093.0,0.16609939]
[1722268902930,0.05,68102.0,68093.0,0.16609939]
[1722268903918,0.146828,68107.0,68096.0,0.146851]
[1722268903919,0.001,68097.0,68096.0,0.146851]
[1722268904153,0.001,68097.0,68096.0,0.36938697]
[1722268904399,0.001,68097.0,68096.0,0.66215339]
[1722268904549,0.001,68097.0,68096.0,0.36845039]
[1722268904707,0.001,68097.0,68096.0,0.36645039]
[1722268904916,0.001,68097.0,68096.0,0.22159939]
[1722268905156,0.001,68097.0,68096.0,0.21959939]
[1722268905363,0.001,68097.0,68096.0,0.023]
[1722268905580,0.001,68097.0,68078.0,0.07154355]
[1722268905581,0.05,68095.0,68084.0,0.0781]
[1722268905755,0.05,68095.0,68082.0,0.0535]
[1722268905756,0.05,68094.0,68085.0,0.14309939]
[1722268905967,0.05,68095.0,68086.0,0.07154355]
[1722268906283,0.05,68095.0,68087.0,0.14309939]
[1722268906426,0.05,68093.0,68087.0,0.14309939]
[1722268906623,0.1,68095.0,68087.0,0.14309939]
[1722268906624,0.05,68094.0,68087.0,0.14309939]
[1722268906875,0.05,68090.0,68079.0,0.1]
[1722268907119,0.05,68090.0,68080.0,0.16609939]
[1722268907294,0.15,68090.0,68080.0,0.16609939]
[1722268907519,0.05,68090.0,68080.0,0.16609939]
[1722268907991,0.15,68090.0,68080.0,0.16609939]
[1722268908381,0.05,68090.0,68085.0,0.07154355]
[1722268908577,0.05,68090.0,68086.0,0.023]
[1722268909182,0.05,68095.0,68086.0,0.023]
[1722268909399,0.05,68094.0,68086.0,0.023]
[1722268909619,0.001,68090.0,68086.0,0.023]
[1722268909813,0.051,68090.0,68086.0,0.023]
[1722268910272,0.05,68090.0,68086.0,0.023]
[1722268910448,0.051,68090.0,68086.0,0.037]
[1722268910787,0.151,68090.0,68086.0,0.037]
[1722268910984,0.146867,68089.0,68086.0,0.037]
[1722268911186,0.05,68088.0,68086.0,0.037]
[1722268911629,0.101,68090.0,68086.0,0.037]
[1722268911630,0.151,68090.0,68086.0,0.037]
[1722268911866,0.001,68090.0,68086.0,0.037]
[1722268912940,0.05,68092.0,68086.0,0.037]
[1722268912941,0.05,68092.0,68086.0,0.023]
[1722268913144,0.15,68092.0,68086.0,0.023]
[1722268913341,0.001,68088.0,68086.0,0.032]
[1722268913546,0.002,68088.0,68086.0,0.025]
[1722268913893,0.002,68088.0,68086.0,0.034]
[1722268914094,0.001,68088.0,68086.0,0.025]
[1722268914559,0.001,68088.0,68086.0,0.034]
[1722268914560,0.002,68088.0,68086.0,0.034]
[1722268914757,0.001,68088.0,68086.0,0.032]
[1722268915467,0.05,68087.0,68086.0,0.034]
[1722268915680,0.15,68087.0,68086.0,0.011]
[1722268915883,0.43557,68087.0,68086.0,0.011]
[1722268916057,1.023052,68087.0,68086.0,0.011]
[1722268916269,1.37677622,68087.0,68086.0,0.011]
[1722268916600,1.37677622,68087.0,68086.0,0.002]
[1722268916845,1.37677622,68087.0,68071.0,0.0777]
[1722268916846,0.15,68082.0,68071.0,0.14924355]
[1722268917037,0.15,68082.0,68074.0,0.14402339]
[1722268917038,0.05,68078.0,68074.0,0.14402339]
[1722268917242,0.05,68078.0,68075.0,0.023]
[1722268917462,0.05,68079.0,68075.0,0.023]
[1722268917661,0.05,68080.0,68075.0,0.023]
[1722268918225,0.1,68082.0,68075.0,0.023]
[1722268918226,0.0015542,68079.0,68075.0,0.023]
[1722268918426,0.0515542,68079.0,68075.0,0.023]
[1722268918766,0.0015542,68076.0,68075.0,0.023]
[1722268919513,0.05,68077.0,68075.0,0.023]
[1722268919936,0.001,68078.0,68075.0,0.023]
[1722268920321,0.05,68078.0,68075.0,0.023]
[1722268920517,0.05,68082.0,68075.0,0.023]
[1722268920874,0.001,68079.0,68075.0,0.029]
[1722268921079,0.0015542,68078.0,68075.0,0.029]
[1722268921274,0.0015542,68078.0,68075.0,0.023]
[1722268921478,0.05,68077.0,68075.0,0.03]
[1722268921685,0.001,68078.0,68075.0,0.03]
[1722268922375,0.001,68078.0,68075.0,0.025]
[1722268922572,0.05,68076.0,68075.0,0.025]
[1722268922782,0.0515542,68076.0,68075.0,0.025]
[1722268923025,0.1984482,68076.0,68075.0,0.025]
[1722268923225,0.101,68078.0,68075.0,0.025]
[1722268923226,0.0015542,68077.0,68075.0,0.025]
[1722268923434,0.0015542,68077.0,68075.0,0.023]
[1722268923637,0.05,68076.0,68075.0,0.023]
[1722268923836,0.05,68076.0,68075.0,0.025]
[1722268923837,0.051,68076.0,68075.0,0.025]
[1722268924214,0.001,68076.0,68075.0,0.025]
[1722268924582,0.001,68076.0,68075.0,0.16809939]
[1722268925135,0.051,68076.0,68075.0,0.16809939]
[1722268925739,0.05,68076.0,68075.0,0.16609939]
[1722268926106,0.05,68076.0,68075.0,0.17609939]
[1722268926487,0.001,68077.0,68075.0,0.16809939]
[1722268926620,0.0015542,68076.0,68075.0,0.16609939]
[1722268926800,0.0035542,68076.0,68075.0,0.17609939]
[1722268927027,0.002,68076.0,68075.0,0.26038653]
[1722268927230,0.002,68076.0,68075.0,0.31388653]
[1722268927439,0.001,68076.0,68075.0,0.75257553]
[1722268927678,0.0015542,68090.0,68089.0,0.146866]
[1722268927888,1.0,68100.0,68089.0,0.14309939]
[1722268928140,1.0,68100.0,68090.0,0.16609939]
[1722268928351,1.0,68100.0,68091.0,0.1]
[1722268928524,1.0,68100.0,68093.0,0.36264355]
[1722268928724,1.0,68100.0,68094.0,0.169036]
[1722268928950,1.0,68100.0,68097.0,0.146848]
[1722268929149,1.0,68100.0,68098.0,0.16609939]
[1722268931668,1.004,68100.0,68098.0,0.16609939]
[1722268931921,1.004,68100.0,68099.0,0.14978161]
[1722268932130,1.004,68100.0,68099.0,0.90032439]
[1722268932486,1.004,68100.0,68099.0,0.90232439]
[1722268932685,1.004,68100.0,68099.0,0.60863439]
[1722268932891,1.004,68100.0,68099.0,0.31294439]
[1722268933115,1.004,68100.0,68099.0,0.16609939]
[1722268933523,1.0,68100.0,68099.0,0.16609939]
[1722268933701,1.003,68100.0,68099.0,0.16609939]
[1722268934284,1.0,68100.0,68099.0,0.90032439]
[1722268934713,1.001,68100.0,68099.0,1.20142439]
[1722268935163,1.0,68100.0,68099.0,1.19342439]
[1722268935504,1.0,68100.0,68099.0,1.32952439]
[1722268935811,1.0,68100.0,68099.0,1.72321439]
[1722268936467,1.001,68100.0,68099.0,1.44352439]
[1722268937305,1.001,68100.0,68099.0,0.41619939]
[1722268937529,1.001,68100.0,68099.0,0.33969939]
[1722268937894,1.002,68100.0,68099.0,0.35169939]
[1722268938279,1.0,68100.0,68099.0,0.32569939]
[1722268938718,1.001,68100.0,68099.0,0.33969939]
[1722268938921,1.001,68100.0,68099.0,0.50954439]
[1722268939350,1.001,68100.0,68099.0,0.17809939]
[1722268941575,1.002,68100.0,68099.0,0.19209939]
[1722268943818,1.001,68100.0,68099.0,0.18009939]
[1722268944309,1.001,68100.0,68099.0,0.17709939]
[1722268944538,1.051,68100.0,68099.0,0.034]
[1722268944822,1.051,68100.0,68079.0,0.0768]
[1722268944823,0.146866,68089.0,68079.0,0.0768]
[1722268945081,0.293715,68094.0,68080.0,0.14309939]
[1722268945082,0.05,68094.0,68080.0,0.14309939]
[1722268945297,0.05,68094.0,68084.0,0.2327]
[1722268945525,0.05,68094.0,68085.0,0.14309939]
[1722268945761,0.05,68095.0,68085.0,0.17226433]
[1722268945974,0.05,68092.0,68085.0,0.17226433]
[1722268946144,0.1,68095.0,68085.0,0.17226433]
[1722268946145,0.05,68089.0,68086.0,0.023]
[1722268946383,0.05,68088.0,68087.0,0.14309939]
[1722268946595,0.293701,68097.0,68086.0,0.16609939]
[1722268946596,0.115,68087.0,68086.0,0.16609939]
[1722268947019,0.065,68087.0,68086.0,0.16609939]
[1722268947210,1.0799,68100.0,68099.0,0.451535]
[1722268947211,1.001,68100.0,68099.0,0.451535]